{"text_format":"1","workbook":"xlsx","n_sheets":12,"sheets":["Forside","Læsevejledning","Tabel 1","Tabel 2","Tabel 3","Tabel 4","Tabel 5","Tabel 6","Tabel 7","Tabel 8","Tabel 9","Tabel 10"],"not_rendered":{"charts":0,"images":2,"macros":1,"external_links":0,"defined_names":3,"comments":0,"pivot_tables":0},"unopened":[],"bounds":{"document_bytes":16777216,"sheet_cells":100000,"rows_first":2000,"rows_last":500,"rows_between":2000,"halvings":0,"cell_chars":16384,"cell_head_chars":4096},"cells_cut":0,"cells_raw":0,"read":"whole","date_system":"1900"}

{"sheet":"Forside","index":0,"n_rows":21,"n_cols":2,"rows_kept":21,"cut":false,"hidden":false,"merged":[]}
[]
["Analyse af hyppige akutte patienter"]
[]
["Bilag 4: Regionsspecifikke nøgletal"]
[]
[]
[]
[]
[]
["Indhold:"]
["Læsevejledning","Læsevejledning"]
["Tabel 1","Faktisk og forventet andel samt benchmarkingindikator for andelen af hyppige akutte patienter blandt den samlede gruppe af akutte patienter "]
["Tabel 2","Andelen af den samlede akutte sygehusaktivitet, som hyppige akutte patienter står for"]
["Tabel 3","Andelen af hyppige akutte patienter som er ældre, lider af kronisk sygdom eller modtager kommunale hjemmesygepleje- eller plejeydelser"]
["Tabel 4","Gennemsnitligt antal akutte sygehusophold pr. år for hyppige akutte patienter"]
["Tabel 5","Udvikling i den faktiske andel af hyppige akutte patienter, 2014-2016 til 2021-2023"]
["Tabel 6","Køns- og aldersstandardiseret udvikling i andelen af hyppige akutte patienter, 2014-2016 til 2021-2023"]
["Tabel 7","Hyppige akutte patienters akutte sygehusophold fordelt på ambulante ophold og indlæggelser"]
["Tabel 8","Hyppige akutte patienters socioøkonomiske og helbredsmæssige karakteristika"]
["Tabel 9","Faktiske andel af hyppige akutte patienter blandt den samlede gruppe af akutte patienter, når akutte sygehusophold relateret til skader, forgiftninger mm. ekskluderes"]
["Tabel 10","Andelen af den samlede akutte sygehusaktivitet, som hyppige akutte patienter står for, når akutte sygehusophold relateret til skader, forgiftninger mm. ekskluderes"]

{"sheet":"Læsevejledning","index":1,"n_rows":39,"n_cols":1,"rows_kept":39,"cut":false,"hidden":false,"merged":[]}
[]
["Læsevejledningen"]
[]
["Forsiden"]
[]
[]
["Dette bilag indeholder tabeller med regionsspecifikke nøgletal. Opgørelserne er generelt af-grænset på samme måde som i hovedrapporten. Læs mere herom i hovedrapportens kapitel 3 og bilag 7 ”Metode”. For at øge robustheden i resultaterne, er alle resultater baseret på en treårig periode 2021-2023. Tabeller der beskriver udvikling over tid er på samme vis baseret på flerårige perioder (2014-2016 til 2021-2023)."]
["Særligt om sammenligninger på tværs af regioner"]
["Region Hovedstadens organisering af den regionale akutordning medfører, at ambulant aktivitet og den samlede akutte sygehusaktivitet systematisk er højere i Region Hovedstaden end i de øvrige regioner. Som beskrevet i hovedrapporten påvirker dette også andelen af hyppige akutte patienter på landsplan. Derfor sammenlignes regionerne i tabellerne ikke med landsgennemsnittet. En nærmere beskrivelse af de metodiske valg og afgrænsninger, som ligger til grund for beregningerne, findes i hovedrapportens kapitel 3 og i bilag 7 ”Metode”."]
[]
["Tabel 1: Faktisk og forventet andel samt benchmarkingindikator for andelen af hyppige akutte patienter blandt den samlede gruppe af akutte patienter "]
["Tabel 1 viser – for Region Nordjylland, Region Midtjylland, Region Syddanmark og Region Sjælland – hvor stor en andel af alle akutte patienter der er hyppige akutte patienter i perioden 2021-2023. Denne andel kaldes den faktiske andel. Ved siden af står den forventede andel, som er det niveau, man kan forvente, når der tages hensyn til regionens rammevilkår. Disse andele opgøres i procent. I den sidste kolonne findes benchmarkingindikatoren: forskellen mellem den faktiske og den forventede andel målt i procentpoint. En positiv værdi betyder, at regionen har flere hyppige akutte patienter end forventet; en negativ værdi betyder færre end forventet. For Region Hovedstaden vises kun den faktiske andel. Regionens andel af hyppige akutte patienter beregnes nemlig i en særskilt regressionsmodel. Hermed undgår vi, at Region Hovedstadens relativt høje aktivitetsniveau påvirker de forventede værdier i de øvrige regioner – og omvendt – jf. den særlige organisering beskrevet ovenfor. En nærmere beskrivelse af implikationerne af, at analyserne udføres på tværs af separate modeller findes i hovedrapportens kapitel 3 og i bilag 7 ”Metode”."]
[]
["Tabel 2: Andelen af den samlede akutte sygehusaktivitet, som hyppige akutte patienter står for"]
["I tabel 2 præsenteres for hver region andelen af akutte sygehus ophold, som hyppige akutte patienter står for i perioden fra 2021-2023 (opgjort i procent).  "]
[]
["Tabel 3: Andelen af hyppige akutte patienter som er ældre, lider af kronisk sygdom eller modtager kommunale hjemmesygepleje- eller plejeydelser"]
["I tabel 3 præsenteres for hver region andelenaf hyppige akutte patienter, som enten er 80 år eller derover, har mindst én registreret kronisk sygdom eller modtager kommunale hjemmesygepleje- eller plejeydelser i perioden 2021-2023 (opgjort i procent). Afgrænsningen af denne patientgruppe er beskrevet i hovedrapportens kapitel 3 og bilag 7 ”Metode”. "]
[]
["Tabel 4: Gennemsnitligt antal akutte sygehusophold pr. år for hyppige akutte patienter"]
["I tabel 4 præsenteres for hver region antallet af akutte sygehusophold som den gennemsnitlige hyppige akutte patient har i løbet af et kalenderår i perioden 2021-2023."]
[]
["Tabel 5: Udvikling i den faktiske andel af hyppige akutte patienter, 2014-2016 til 2021-2023"]
["I tabel 5 præsenteres for hver region udviklingen i andelen af hyppige akutte patienter ud af den samlede gruppe af akutte patienter på tværs af flerårige perioder fra 2014-2016 til 2021-2023 (opgjort i procent).  "]
[]
["Tabel 6: Køns- og aldersstandardiseret udvikling i andelen af hyppige akutte patienter, 2014-2016 til 2021-2023"]
["I tabel 6 præsenteres for hver region den køns- og aldersstandardiseret udviklingen i andelen af hyppige akutte patienter ud af den samlede gruppe af akutte patienter på tværs af flerårige perioder fra 2014-2016 til 2021-2023 (opgjort i procent). Standardiseringen er baseret på niveauet i 2014 som referenceniveau."]
[]
["Tabel 7: Hyppige akutte patienters akutte sygehusophold fordelt på ambulante ophold og indlæggelser"]
["I tabel 7 præsenteres for hver region fordelingen af hyppige akutte patienters ophold mellem akut ambulante sygehusophold og akutte indlæggelser fra 2021-2023 (opgjort i procent). "]
[]
["Tabel 8: Hyppige akutte patienters socioøkonomiske og helbredsmæssige karakteristika"]
["I tabel 8 præsenteres for hver region en række socioøkonomiske og helbredsrelateret karakteristika for hyppige akutte patienter baseret på perioden 2021-2023 (opgjort i procent). Læs mere om afgrænsningerne af variablene i bilag 7 ”Metode”. "]
[]
["Tabel 9: Faktiske andel af hyppige akutte patienter blandt den samlede gruppe af akutte patienter, når akutte sygehusophold relateret til skader, forgiftninger mm. ekskluderes"]
["Tabel 9 viser for hver region, hvor stor en andel af alle akutte patienter der er hyppige akutte patienter i perioden, når aktionsdiagnoser relateret til skader, forgiftninger mm. ekskluderes fra datagrundlaget 2021-2023 (opgjort i procent)."]
[]
["Tabel 10: Andelen af den samlede akutte sygehusaktivitet, som hyppige akutte patienter står for, når akutte sygehusophold relateret til skader, forgiftninger mm. ekskluderes "]
["I tabel 10 præsenteres for hver region andelen af akutte sygehus ophold, som hyppige akutte patienter står for i perioden fra 2021-2023, når aktionsdiagnoser relateret til skader, forgiftninger mm. ekskluderes fra datagrundlaget (opgjort i procent).  "]

{"sheet":"Tabel 1","index":2,"n_rows":18,"n_cols":4,"rows_kept":18,"cut":false,"hidden":false,"merged":[[16,0,16,3]]}
[]
[{"$f":"Forside!A12","v":"Tabel 1"},{"$f":"Forside!B12","v":"Faktisk og forventet andel samt benchmarkingindikator for andelen af hyppige akutte patienter blandt den samlede gruppe af akutte patienter "}]
[]
["Forsiden"]
[]
[]
[]
["Faktisk og forventet andel samt benchmarkingindikator for andelen af hyppige akutte patienter blandt den samlede gruppe af akutte patienter, 2021-2023"]
[]
["Region","Andelen af hyppige akutte patienter","Forventede andel hyppige akutte patienter","Benchmarkingindikator for andelen af hyppige akutte patienter"]
["Nordjylland",5.0999999999999996,5,0.1]
["Midtjylland",4.5,4.7,"-0,2 "]
["Syddanmark",4.4000000000000004,4.7,"-0,3 "]
["Sjælland",5.5,5,0.5]
["Hovedstaden",5.7,"I/T","I/T"]
["Landsplan*",5.0999999999999996,"I/T","I/T"]
["Anm.: I Region Hovedstaden visiteres alle akutte henvendelser via akuttelefonen 1813, hvilket betyder, at regionens akutte ambulante ophold også omfatter akutte kontakter, der i andre regioner håndteres af vagtlægeordningen. På grund af denne forskel anbefales det ikke at sammenligne Region Hovedstadens tal direkte med de øvrige regioner. *Landsplanstallet påvirkes også af organiseringen af akutområdet i Region Hovedstaden. Læs mere i hovedrappor-tens kapitel 3 og bilag 7."]
["Kilde: Sundhedsdatastyrelsen, Danmarks Statistik og egne beregninger."]

{"sheet":"Tabel 2","index":3,"n_rows":18,"n_cols":2,"rows_kept":18,"cut":false,"hidden":false,"merged":[[16,0,16,1]]}
[]
[{"$f":"Forside!A13","v":"Tabel 2"},{"$f":"Forside!B13","v":"Andelen af den samlede akutte sygehusaktivitet, som hyppige akutte patienter står for"}]
[]
["Forsiden"]
[]
[]
[]
["Andelen af den samlede akutte sygehusaktivitet, som hyppige akutte patienter står for, 2021-2023"]
[]
["Region","Andelen af den akutte aktivitet som hyppige akutte patienter står for"]
["Nordjylland",18]
["Midtjylland",16.8]
["Syddanmark",16.100000000000001]
["Sjælland",19.3]
["Hovedstaden",19.3]
["Landsplan*",18.2]
["Anm.: I Region Hovedstaden visiteres alle akutte henvendelser via akuttelefonen 1813, hvilket betyder, at regionens akutte ambulante ophold også omfatter akutte kontakter, der i andre regioner håndteres af vagtlægeordningen. På grund af denne forskel anbefales det ikke at sammenligne Region Hovedstadens tal direkte med de øvrige regioner. *Landsplanstallet påvirkes også af organiseringen af akutområdet i Region Hovedstaden. Læs mere i hovedrappor-tens kapitel 3 og bilag 7."]
["Kilde: Sundhedsdatastyrelsen, Danmarks Statistik og egne beregninger."]

{"sheet":"Tabel 3","index":4,"n_rows":18,"n_cols":3,"rows_kept":18,"cut":false,"hidden":false,"merged":[[16,0,16,2]]}
[]
[{"$f":"Forside!A14","v":"Tabel 3"},{"$f":"Forside!B14","v":"Andelen af hyppige akutte patienter som er ældre, lider af kronisk sygdom eller modtager kommunale hjemmesygepleje- eller plejeydelser"}]
[]
["Forsiden"]
[]
[]
[]
["Andelen af hyppige akutte patienter fordelt på, hvorvidt de tilhører den udvalgte befolkningsgruppe bestående af Ældre på 80+ år, kronikere og modtagere af kommunal pleje- og hjemmepleje-ydelser, 2021-2023"]
[]
["Region","Hyppige akutte patienter i den udvalgte befolkningsgruppe","Resterende hyppige akutte patienter"]
["Nordjylland",59.9,40.1]
["Midtjylland",61.6,38.4]
["Syddanmark",63.1,36.9]
["Sjælland",54.3,45.7]
["Hovedstaden",47.4,52.6]
["Landsplan*",55.7,44.4]
["Anm.: I Region Hovedstaden visiteres alle akutte henvendelser via akuttelefonen 1813, hvilket betyder, at regionens akutte ambulante ophold også omfatter akutte kontakter, der i andre regioner håndteres af vagtlægeordningen. På grund af denne forskel anbefales det ikke at sammenligne Region Hovedstadens tal direkte med de øvrige regioner. *Landsplanstallet påvirkes også af organiseringen af akutområdet i Region Hovedstaden. Læs mere i hovedrappor-tens kapitel 3 og bilag 7."]
["Kilde: Sundhedsdatastyrelsen, Danmarks Statistik og egne beregninger."]

{"sheet":"Tabel 4","index":5,"n_rows":18,"n_cols":2,"rows_kept":18,"cut":false,"hidden":false,"merged":[[16,0,16,1]]}
[]
[{"$f":"Forside!A15","v":"Tabel 4"},{"$f":"Forside!B15","v":"Gennemsnitligt antal akutte sygehusophold pr. år for hyppige akutte patienter"}]
[]
["Forsiden"]
[]
[]
[]
["Gennemsnitligt antal akutte sygehusophold pr. hyppig akut patient pr. år, 2021-2023"]
[]
["Region","Antal "]
["Nordjylland",5.4]
["Midtjylland",5.6]
["Syddanmark",5.4]
["Sjælland",5.5]
["Hovedstaden",5.3]
["Landsplan*",5.4]
["Anm.: I Region Hovedstaden visiteres alle akutte henvendelser via akuttelefonen 1813, hvilket betyder, at regionens akutte ambulante ophold også omfatter akutte kontakter, der i andre regioner håndteres af vagtlægeordningen. På grund af denne forskel anbefales det ikke at sammenligne Region Hovedstadens tal direkte med de øvrige regioner.*Landsplanstallet påvirkes også af organiseringen af akutområdet i Region Hovedstaden. Læs mere i hovedrappor-tens kapitel 3 og bilag 7."]
["Kilde: Sundhedsdatastyrelsen, Danmarks Statistik og egne beregninger."]

{"sheet":"Tabel 5","index":6,"n_rows":18,"n_cols":4,"rows_kept":18,"cut":false,"hidden":false,"merged":[[53,1,53,6],[16,0,16,3],[17,0,17,3]]}
[]
[{"$f":"Forside!A16","v":"Tabel 5"},{"$f":"Forside!B16","v":"Udvikling i den faktiske andel af hyppige akutte patienter, 2014-2016 til 2021-2023"}]
[]
["Forsiden"]
[]
[]
[]
["Udviklingen i andelen af hyppige akutte patienter blandt den samlede gruppe af akutte patienter, 2014-2016 til 2021-2023"]
[]
["Region","2014-2016","2017-2020","2021-2023"]
["Nordjylland",4.0999999999999996,4.5999999999999996,5.0999999999999996]
["Midtjylland",4.3,4.4000000000000004,4.5]
["Syddanmark",4,4,4.4000000000000004]
["Sjælland",4.5,5,5.5]
["Hovedstaden",5.7,5.6,5.7]
["Landsplan*",4.8,4.9000000000000004,5.0999999999999996]
["Anm.: I Region Hovedstaden visiteres alle akutte henvendelser via akuttelefonen 1813, hvilket betyder, at regionens akutte ambulante ophold også omfatter akutte kontakter, der i andre regioner håndteres af vagtlægeordningen. På grund af denne forskel anbefales det ikke at sammenligne Region Hovedstadens tal direkte med de øvrige regioner. *Landsplanstallet påvirkes også af organiseringen af akutområdet i Region Hovedstaden. Læs mere i hovedrappor-tens kapitel 3 og bilag 7. Bemærk at perioden fra 2017-2020 er baseret på en fireårig og ikke treårig periode. Dette påvirker ikke i sig selv ro-bustheden eller konklusionen omkring udvikling."]
["Kilde: Sundhedsdatastyrelsen, Danmarks Statistik og egne beregninger."]

{"sheet":"Tabel 6","index":7,"n_rows":18,"n_cols":4,"rows_kept":18,"cut":false,"hidden":false,"merged":[[66,1,66,3],[16,0,16,3]]}
[]
[{"$f":"Forside!A17","v":"Tabel 6"},{"$f":"Forside!B17","v":"Køns- og aldersstandardiseret udvikling i andelen af hyppige akutte patienter, 2014-2016 til 2021-2023"}]
[]
["Forsiden"]
[]
[]
[]
["Køns- og aldersstandardiseret udvikling i andelen af hyppige akutte patienter blandt den samlede grup-pe af akutte patienter fra perioden 2014-2016 til 2021-2023"]
[]
["Region","2014-2016","2017-2020","2021-2023"]
["Nordjylland",3.9,4.2,4.5]
["Midtjylland",4.0999999999999996,4,4]
["Syddanmark",3.9,3.8,4]
["Sjælland",4.4000000000000004,4.8,5.2]
["Hovedstaden",5.8,5.7,5.6]
["Landsplan*",4.8,4.8,4.9000000000000004]
["Anm.: I Region Hovedstaden visiteres alle akutte henvendelser via akuttelefonen 1813, hvilket betyder, at regionens akutte ambulante ophold også omfatter akutte kontakter, der i andre regioner håndteres af vagtlægeordningen. På grund af denne forskel anbefales det ikke at sammenligne Region Hovedstadens tal direkte med de øvrige regioner. *Landsplanstallet påvirkes også af organiseringen af akutområdet i Region Hovedstaden. Læs mere i hovedrappor-tens kapitel 3 og bilag 7. Bemærk at perioden fra 2017-2020 er baseret på en fireårig og ikke treårig periode. Dette påvirker ikke i sig selv robustheden eller konklusionen omkring udvikling."]
["Kilde: Sundhedsdatastyrelsen, Danmarks Statistik og egne beregninger."]

{"sheet":"Tabel 7","index":8,"n_rows":18,"n_cols":3,"rows_kept":18,"cut":false,"hidden":false,"merged":[[65,1,65,3],[16,0,16,2]]}
[]
[{"$f":"Forside!A18","v":"Tabel 7"},{"$f":"Forside!B18","v":"Hyppige akutte patienters akutte sygehusophold fordelt på ambulante ophold og indlæggelser"}]
[]
["Forsiden"]
[]
[]
[]
["Fordelingen af kontakttyper blandt hyppige akutte patienter, 2021-2023"]
[]
["Region","Akutte indlæggelser","Akutte ambulante ophold"]
["Nordjylland",51,49]
["Midtjylland",55.9,44.1]
["Syddanmark",49.9,50.1]
["Sjælland",44.5,56.6]
["Hovedstaden",33.299999999999997,66.7]
["Landsplan*",42.7,57.3]
["Anm.: I Region Hovedstaden visiteres alle akutte henvendelser via akuttelefonen 1813, hvilket betyder, at regionens akutte ambulante ophold også omfatter akutte kontakter, der i andre regioner håndteres af vagtlægeordningen. På grund af denne forskel anbefales det ikke at sammenligne Region Hovedstadens tal direkte med de øvrige regioner. *Landsplanstallet påvirkes også af organiseringen af akutområdet i Region Hovedstaden. Læs mere i hovedrappor-tens kapitel 3 og bilag 7. Bemærk at perioden fra 2017-2020 er baseret på en fireårig og ikke treårig periode. Dette påvirker ikke i sig selv robustheden eller konklusionen omkring udvikling."]
["Kilde: Sundhedsdatastyrelsen, Danmarks Statistik og egne beregninger."]

{"sheet":"Tabel 8","index":9,"n_rows":77,"n_cols":7,"rows_kept":77,"cut":false,"hidden":false,"merged":[[73,3,74,3],[73,4,74,4],[73,5,74,5],[28,6,29,6],[70,6,71,6],[73,6,74,6],[75,0,75,6],[28,1,29,1],[28,2,29,2],[28,3,29,3],[28,4,29,4],[28,5,29,5],[70,1,71,1],[70,2,71,2],[70,3,71,3],[70,4,71,4],[70,5,71,5],[73,1,74,1],[73,2,74,2]]}
[]
[{"$f":"Forside!A19","v":"Tabel 8"},{"$f":"Forside!B19","v":"Hyppige akutte patienters socioøkonomiske og helbredsmæssige karakteristika"}]
[]
["Forsiden"]
[]
[]
[]
["Hyppige akutte patienters sociodemografiske karakteristika i regionerne, 2021-2023"]
[]
[null,"Nordjylland","Midtjylland","Syddanmark","Sjælland","Hovedstaden","Landsplan*"]
["Aldersgruppe"]
["0-9 år",5.8,6.5,6.4,6.2,13.5,9.5]
["10-19 år",5.9,5,6.5,6.8,6.1,6.1]
["20-29 år",8.9,7,7.7,14.6,13.4,11.4]
["30-39 år",7.3,5.9,5.6,10.1,12.1,9.4]
["40-49 år",5.4,6.3,6,5.8,6.1,6]
["50-59 år",9.6999999999999993,10,9.1999999999999993,7.9,8,8.6]
["60-69 år",14,15.8,13.4,12,9.8000000000000007,12]
["70-79 år",22.8,23.2,22.3,19.100000000000001,15.3,18.899999999999999]
["80-89 år",16.600000000000001,17,18.600000000000001,14.4,12.7,14.9]
["90 år eller ældre",3.6,3.3,4.3,3.1,3.1,3.4]
["Køn"]
["Kvinde",50.5,46.7,47.8,55.4,56.2,52.9]
["Mand",49.5,53.3,52.2,"44,6 .",43.8,47.1]
["Uddannelse"]
["Ingen el. uoplyst",9.6999999999999993,9.8000000000000007,10.5,9.8000000000000007,17,13.1]
["Grundskole",42.6,39.700000000000003,42.6,"39,4 .",28.2,35.299999999999997]
["Gymnasial- el. erhvervsuddannelse",32.700000000000003,34.700000000000003,32.700000000000003,34.200000000000003,30,32]
["Kort el. mellemlang videregående",12.1,12.3,11.6,13.3,16,14]
["uddannelse"]
["Lang videregående uddannelse el. Ph.d.",2.8,3.5,2.5,3.2,8.8000000000000007,5.6]
["Beskæftigelsesstatus"]
["Under uddannelse",10.8,10.3,11.3,12.2,18.600000000000001,14.5]
["Beskæftiget",23.9,23.1,21.7,30.4,33.799999999999997,28.9]
["Ledig",4.8,4.2,4.4000000000000004,5.2,4.5999999999999996,4.5999999999999996]
["Sygedagpenge o. lign.",1.8,1.6,1.3,1.4,1.3,1.4]
["Førtidspension, seniorpension, fleksjob, ressourceforløb o. lign.",12.1,13.4,12.9,10.9,7.9,10.4]
["Pension el. efterløn",46.5,47,48.2,39.700000000000003,33.299999999999997,39.9]
["Uoplyst",0.2,0.3,0.3,0.2,0.5,0.4]
["Ækvivaleret disponibel indkomst"]
["Maks. 140.000 kr.",8.5,8.8000000000000007,9.9,9.8000000000000007,10.5,9.9]
["140.001 kr. – 200.000 kr.",37.700000000000003,33.299999999999997,37.799999999999997,30.4,24.9,30.2]
["200.001 kr. – 270.000 kr.",27.8,28.9,28.1,28.5,25.7,27.2]
["270.001 kr. – 370.000 kr.",17,17.899999999999999,16,19.899999999999999,20.7,19.100000000000001]
["370.001 kr. – 480.000 kr.",5.7,6.8,5.3,7.8,10.199999999999999,8.1999999999999993]
["Min, 480.000 kr.",3.2,4.2,2.8,3.6,7.9,5.4]
["Kommunal  pleje"]
["Modtager af praktisk hjælp",20.6,20.6,20.8,18,15.5,17.899999999999999]
["Modtager af personlig hjælp",16.399999999999999,18.3,18.399999999999999,"16,3 .",12.4,15.2]
["Modtager af hjemmesygepleje",37.5,42.6,41.8,30.1,22.9,31.3]
["Modtager af Plejebolig",4.5,2.9,3,2.5,2.7,2.9]
["Psykisk udfordret"]
["Ja",23.4,23.9,29.3,26.7,24.1,25.3]
["Sygelighed"]
["Ingen",37.4,34.9,34.5,43.9,51.5,43.9]
["Let",21.5,21.8,22.5,21.7,20.8,21.4]
["Middelsvær",16,16.600000000000001,15.6,13.3,10.8,13.3]
["Høj",25.1,26.7,27.4,21.2,16.899999999999999,21.4]
["Kronisk syg"]
["Ja",50.4,52.4,53.9,46.1,40.299999999999997,46.1]
["Kronisk sygdom"]
["Astma",19.7,18.399999999999999,18.5,21.9,27.6,22.7]
["Knogleskørhed",27.4,28,26.9,20,20.8,23.6]
["Leddegigt",5.7,5.9,5.2,5.6,4.9000000000000004,5.3]
["KOL",36.6,36.299999999999997,35.4,34.4,30.7,33.700000000000003]
["Type 1 diabetes",3.3,3,2.4,2.8,2.4,2.7]
["Type 2 diabetes",32.700000000000003,30.8,30.6,29.2,26.9,29.1]
["Skizofreni",2.6,3.2,3.3,4.0999999999999996,4.0999999999999996,3.7]
["Demens",3.6,3.9,7.6,5.5,6.4,5.8]
["Multisyg",30.9,30.4,30.6,26.4,25.8,28]
["Kontakter med almen praksis og"]
["hospital (opgjort i antal)"]
["Alment praktiserende læge",19.100000000000001,19.8,19.399999999999999,17.399999999999999,16.2,17.7]
["Hospitalsophold",6.5,7.7,7,5.8,5.2,6.1]
["(somatisk)"]
["Anm.: I Region Hovedstaden visiteres alle akutte henvendelser via akuttelefonen 1813, hvilket betyder, at regionens akutte ambulante ophold også omfatter akutte kontakter, der i andre regioner håndteres af vagtlægeordningen. På grund af denne forskel anbefales det ikke at sammenligne Region Hovedstadens tal direkte med de øvrige regioner. *Landsplanstallet påvirkes også af organiseringen af akutområdet i Region Hovedstaden. Læs mere i hovedrappor-tens kapitel 3 og bilag 7. Bemærk at perioden fra 2017-2020 er baseret på en fireårig og ikke treårig periode. Dette påvirker ikke i sig selv robustheden eller konklusionen omkring udvikling."]
["Kilde: Sundhedsdatastyrelsen, Danmarks Statistik og egne beregninger."]

{"sheet":"Tabel 9","index":10,"n_rows":18,"n_cols":2,"rows_kept":18,"cut":false,"hidden":false,"merged":[[64,1,64,3],[16,0,16,1]]}
[]
[{"$f":"Forside!A20","v":"Tabel 9"},{"$f":"Forside!B20","v":"Faktiske andel af hyppige akutte patienter blandt den samlede gruppe af akutte patienter, når akutte sygehusophold relateret til skader, forgiftninger mm. ekskluderes"}]
[]
["Forsiden"]
[]
[]
[]
["Andelen af hyppige akutte patienter blandt den samlede gruppe af akutte patienter, når akutte sygehusophold relateret til skader og forgiftninger mm. ekskluderes, 2021-2023"]
[]
["Region","Andelen af hyppige akutte patienter"]
["Nordjylland",5.4]
["Midtjylland",5]
["Syddanmark",5.2]
["Sjælland",6.2]
["Hovedstaden",5.7]
["Landsplan*",5.6]
["Anm.: I Region Hovedstaden visiteres alle akutte henvendelser via akuttelefonen 1813, hvilket betyder, at regionens akut-te ambulante ophold også omfatter akutte kontakter, der i andre regioner håndteres af vagtlægeordningen. På grund af denne forskel anbefales det ikke at sammenligne Region Hovedstadens tal direkte med de øvrige regioner. *Landsplanstallet påvirkes også af organiseringen af akutområdet i Region Hovedstaden. Læs mere i hovedrappor-tens kapitel 3 og bilag 7. Skader og forgiftninger mm. identificeres ved diagnoser fra kapitel XIX ”Læsioner, forgiftninger og visse andre følger af ydre påvirkninger [DS00-DT98]” i Klassifikation af sygdomme og helbredsrelaterede tilstande -  den danske version af WHO´s \"International Statistical Classification of Diseases and Related Health Problems\" (ICD-10). klassifikationer mv. findes på Sundhedsdatastyrelsens hjemmeside: Sund-hedsdatastyrelsen.dk."]
["Kilde: Sundhedsdatastyrelsen, Danmarks Statistik og egne beregninger."]

{"sheet":"Tabel 10","index":11,"n_rows":18,"n_cols":2,"rows_kept":18,"cut":false,"hidden":false,"merged":[[56,1,56,3],[16,0,16,1]]}
[]
[{"$f":"Forside!A21","v":"Tabel 10"},{"$f":"Forside!B20","v":"Faktiske andel af hyppige akutte patienter blandt den samlede gruppe af akutte patienter, når akutte sygehusophold relateret til skader, forgiftninger mm. ekskluderes"}]
[]
["Forsiden"]
[]
[]
[]
["Andelen af den samlede akutte sygehusaktivitet, som hyppige akutte patienter står for, når akutte sygehus-ophold relateret til skader og forgiftninger mm. ekskluderes, 2021-2023"]
[]
["Region","Andelen af den akutte aktivitet som hyppige akutte patienter står for"]
["Nordjylland",19.2]
["Midtjylland",18.3]
["Syddanmark",18.5]
["Sjælland",21.8]
["Hovedstaden",19.8]
["Landsplan*",19.600000000000001]
["Anm.: I Region Hovedstaden visiteres alle akutte henvendelser via akuttelefonen 1813, hvilket betyder, at regionens akut-te ambulante ophold også omfatter akutte kontakter, der i andre regioner håndteres af vagtlægeordningen. På grund af denne forskel anbefales det ikke at sammenligne Region Hovedstadens tal direkte med de øvrige regioner. *Landsplanstallet påvirkes også af organiseringen af akutområdet i Region Hovedstaden. Læs mere i hovedrappor-tens kapitel 3 og bilag 7. Skader og forgiftninger mm. identificeres ved diagnoser fra kapitel XIX ”Læsioner, forgiftninger og visse andre følger af ydre påvirkninger [DS00-DT98]” i Klassifikation af sygdomme og helbredsrelaterede tilstande -  den danske version af WHO´s \"International Statistical Classification of Diseases and Related Health Problems\" (ICD-10). klassifikationer mv. findes på Sundhedsdatastyrelsens hjemmeside: Sund-hedsdatastyrelsen.dk."]
["Kilde: Sundhedsdatastyrelsen, Danmarks Statistik og egne beregninger."]